fUST/lending_fUST_20250725
["ID","MTS","AMOUNT","RATE_DAILY","PERIOD"]
[374695067,1753416752626,-460.0,0.00017086,2]
[374695068,1753416752648,-460.0,0.00017086,2]
[374695069,1753416752670,-460.0,0.00017086,2]
[374695070,1753416752691,-479.49,0.00017086,2]
[374695071,1753416752712,-460.0,0.00017086,2]
[374695072,1753416752734,-460.0,0.00017086,2]
[374695073,1753416752756,-460.0,0.00017087,2]
[374695074,1753416752779,-460.0,0.00017087,2]
[374695075,1753416752800,-320.6326763,0.00017087,2]
[374695076,1753416752820,-460.0,0.00017087,2]
[374695077,1753416752841,-460.0,0.00017087,2]
[374695078,1753416752865,-942.82,0.00017087,2]
[374695079,1753416752887,-471.02,0.00017087,2]
[374695080,1753416752910,-460.0,0.00017087,2]
[374695081,1753416752930,-460.0,0.00017087,2]
[374695082,1753416752952,-227.23,0.00017087,2]
[374695083,1753416752972,-460.0,0.00017087,2]
[374695084,1753416752994,-460.0,0.00017087,2]
[374695085,1753416753016,-460.0,0.00017087,2]
[374695086,1753416753038,-460.0,0.00017087,2]
[374695087,1753416753064,-515.75,0.00017087,2]
[374695088,1753416753088,-460.0,0.00017087,2]
[374695089,1753416753116,-460.0,0.00017087,2]
[374695090,1753416753139,-460.0,0.00017087,2]
[374695091,1753416753169,-460.81711192,0.00017087,2]
[374695092,1753416753208,-460.0,0.00017186,2]
[374695093,1753416753230,-460.0,0.00017289,2]
[374695094,1753416753256,-460.0,0.0001736,2]
[374695095,1753416753281,-460.0,0.0001736,2]
[374695096,1753416753306,-337.21,0.0001736,2]
[374695097,1753416753332,-460.0,0.00017361,2]
[374695098,1753416753354,-942.82,0.00017361,2]
[374695099,1753416753380,-471.02,0.00017361,2]
[374695100,1753416753404,-515.75,0.00017361,2]
[374695101,1753416753428,-500.0,0.00017473,2]
[374695102,1753416753453,-460.0,0.00017634,2]
[374695103,1753416753477,-304.46,0.00017634,2]
[374695104,1753416753502,-460.0,0.00017635,2]
[374695105,1753416753525,-942.82,0.00017635,2]
[374695106,1753416753548,-471.02,0.00017635,2]
[374695107,1753416753572,-515.75,0.00017635,2]
[374695108,1753416753594,-199.6079855,0.00017658,2]
[374695109,1753416753620,-460.0,0.00017908,2]
[374695110,1753416753644,-460.0,0.00017909,2]
[374695111,1753416753668,-942.82,0.00017909,2]
[374695112,1753416753692,-471.02,0.00017909,2]
[374695113,1753416753717,-515.75,0.00017909,2]
[374695114,1753416753740,-732.37793469,0.00018021,2]
[374695115,1753416753766,-318.45,0.00018182,2]
[374695116,1753416753792,-460.0,0.00018183,2]
[374695117,1753416753817,-942.82,0.00018183,2]
[374695118,1753416753846,-471.02,0.00018183,2]
[374695119,1753416753873,-515.75,0.00018183,2]
[374695120,1753416753899,-460.0,0.00018457,2]
[374695121,1753416753924,-942.82,0.00018457,2]
[374695122,1753416753949,-471.02,0.00018457,2]
[374695123,1753416753974,-515.75,0.00018457,2]
[374695124,1753416753997,-420.0,0.00018553,2]
[374695125,1753416754022,-460.0,0.00018731,2]
[374695126,1753416754046,-942.82,0.00018731,2]
[374695127,1753416754071,-471.02,0.00018731,2]
[374695128,1753416754095,-515.75,0.00018731,2]
[374695129,1753416754120,-500.0,0.00018761,2]
[374695130,1753416754144,-526.33361954,0.00018995,2]
[374695131,1753416754172,-160.0,0.00018995,2]
[374695132,1753416754197,-476.88235691,0.00018995,2]
[374695133,1753416754221,-12627.2413641,0.00018995,2]
[374695134,1753416754246,-215.93003454,0.00018995,2]
[374695135,1753416754271,-460.0,0.00019005,2]
[374695136,1753416754295,-942.82,0.00019005,2]
[374695137,1753416754319,-471.02,0.00019005,2]
[374695138,1753416754343,-244.5665343,0.00019005,2]
[374695139,1753416822411,-460.0,0.00017082,2]
[374695140,1753416822436,-460.0,0.00017082,2]
[374695141,1753416822456,-460.0,0.00017082,2]
[374695142,1753416822476,-300.0,0.00017086,2]
[374695143,1753416822498,-460.0,0.00017086,2]
[374695144,1753416822518,-552.64,0.00017086,2]
[374695145,1753416822538,-460.0,0.00017087,2]
[374695146,1753416822558,-460.0,0.00017087,2]
[374695147,1753416822578,-460.0,0.00017087,2]
[374695148,1753416822598,-591.52981364,0.00017087,2]
[374695149,1753416822619,-748.83,0.00017087,2]
[374695150,1753416822639,-460.0,0.00017087,2]
[374695151,1753416822659,-460.0,0.00017087,2]
[374695152,1753416822681,-460.0,0.00017186,2]
[374695153,1753416822700,-460.0,0.00017188,2]
[374695154,1753416822720,-460.0,0.00017188,2]
[374695155,1753416822741,-460.0,0.00017356,2]
[374695156,1753416822762,-460.0,0.0001736,2]
[374695157,1753416822787,-598.13,0.00017361,2]
[374695158,1753416822810,-377.31,0.00017361,2]
[374695159,1753416822834,-748.83,0.00017361,2]
[374695160,1753416822855,-160.0,0.00017361,2]
[374695161,1753416822876,-460.0,0.00017361,2]
[374695162,1753416822896,-500.0,0.00017473,2]
[374695163,1753416822916,-460.0,0.0001763,2]
[374695164,1753416822939,-460.0,0.00017634,2]
[374695165,1753416822960,-748.83,0.00017635,2]
[374695166,1753416822980,-460.0,0.00017635,2]
[374695167,1753416823000,-460.0,0.00017904,2]
[374695168,1753416823020,-460.0,0.00017908,2]
[374695169,1753416823040,-748.83,0.00017909,2]
[374695170,1753416823060,-460.0,0.00017909,2]
[374695171,1753416835763,-390.16150801,0.00018021,2]
[374695172,1753416837469,460.0,0.00017186,2]
[374695173,1753416840854,-206.68027152,0.00018021,2]
[374695174,1753416842290,182.07018636,0.00017188,2]
[374695175,1753416894558,-460.0,0.00016986,2]
[374695176,1753416894579,-464.41150476,0.00016986,2]
[374695177,1753416894601,-460.0,0.00016986,2]
[374695178,1753416894621,-460.0,0.00016986,2]
[374695179,1753416894645,-1997.58849524,0.00016987,2]
[374695180,1753416951926,278.48504718,0.00016478,2]
[374695181,1753417016301,7501.34636699,0.00016172,2]
[374695182,1753417016331,10000.0,0.00016172,2]
[374695183,1753417016354,10000.0,0.00016172,2]
[374695184,1753417016378,1969.21117261,0.00016172,2]
[374695185,1753417113820,1264.0108383,0.00016124,2]
[374695186,1753417228661,6766.77798909,0.00015986,2]
[374695187,1753417228685,3233.22201091,0.00015986,2]
[374695188,1753417253332,167.09102831,0.00016474,2]
[374695189,1753417275090,6599.68696078,0.00015985,2]
[374695190,1753417275114,10000.0,0.00015985,2]
[374695191,1753417275137,8300.31303922,0.00015985,2]
[374695192,1753417483509,1699.68696078,0.00016,2]
[374695193,1753417483535,10000.0,0.00016,2]
[374695194,1753417483561,10000.0,0.00016,2]
[374695195,1753417483593,10000.0,0.00016,2]
[374695196,1753417483621,24568.15635112,0.00016,2]
[374695201,1753417747144,160.53322143,0.00016799,2]
[374695204,1753417819869,43547.61215295,0.00015898,2]
[374695205,1753417819897,55570.32009945,0.00015898,2]
[374695283,1753417832943,-175.598093,0.00016823,2]
[374695286,1753417832953,-276.95141519,0.00016879,2]
[374695289,1753417832962,-441.00360239,0.00016883,2]
[374695292,1753417832973,-1200.0,0.00016897,2]
[374695295,1753417832982,-300.0,0.00016898,2]
[374695298,1753417832991,-300.0,0.00016898,2]
[374695300,1753417833001,-300.0,0.00016898,2]
[374695302,1753417833011,-300.0,0.00016898,2]
[374695304,1753417833024,-300.0,0.00016898,2]
[374695307,1753417833034,-300.0,0.00016898,2]
[374695308,1753417833044,-500.0,0.00016898,2]
[374695311,1753417833054,-358.86194165,0.00016898,2]
[374695312,1753417833064,-500.0,0.00016899,2]
[374695314,1753417833074,-2393.25725559,0.00016899,2]
[374695317,1753417833089,-657.15992585,0.00016899,2]
[374695319,1753417833100,-6662.97877922,0.00016899,2]
[374695321,1753417833112,-727.891282,0.00016899,2]
[374695324,1753417833130,-6271.743028,0.00016899,2]
[374695326,1753417833143,-33286.96972934,0.00016899,2]
[374695328,1753417833153,-500.0,0.00016899,2]
[374695330,1753417833163,-500.0,0.00016899,2]
[374695332,1753417833174,-500.0,0.00016899,2]
[374695333,1753417833183,-500.0,0.00016899,2]
[374695334,1753417833193,-500.0,0.00016899,2]
[374695335,1753417833202,-500.0,0.00016899,2]
[374695336,1753417833212,-500.0,0.00016899,2]
[374695337,1753417833221,-500.0,0.00016899,2]
[374695338,1753417833231,-500.0,0.00016899,2]
[374695339,1753417833240,-500.0,0.00016899,2]
[374695340,1753417833249,-347.47768784,0.00016899,2]
[374695341,1753417833260,-500.0,0.00016899,2]
[374695342,1753417833272,-500.0,0.00016899,2]
[374695343,1753417833283,-500.0,0.00016899,2]
[374695344,1753417833293,-324.68289226,0.00016899,2]
[374695345,1753417833303,-6423.72144451,0.000169,2]
[374695346,1753417833314,-2016.56412824,0.00016923,2]
[374695347,1753417833325,-1004.72513594,0.00016923,2]
[374695348,1753417833335,-679.89,0.00016972,3]
[374695349,1753417833345,-203.96,0.00016975,3]
[374695350,1753417833354,-479.14,0.00016977,3]
[374695351,1753417833364,-460.0,0.00016978,2]
[374695352,1753417833374,-460.0,0.00016978,2]
[374695353,1753417833384,-460.0,0.00016978,2]
[374695354,1753417833393,-506.1283204,0.00016978,2]
[374695355,1753417833403,-460.0,0.00016978,2]
[374695356,1753417833413,-460.0,0.00016978,2]
[374695358,1753417833425,-460.0,0.00016978,2]
[374695360,1753417833434,-460.0,0.00016978,2]
[374695362,1753417833443,-460.0,0.00016978,2]
[374695364,1753417833454,-460.0,0.00016978,2]
[374695366,1753417833464,-1200.0,0.0001698,2]
[374695369,1753417833474,-460.0,0.00016981,2]
[374695370,1753417833483,-460.0,0.00016981,2]
[374695371,1753417833494,-460.0,0.00016981,2]
[374695372,1753417833503,-460.0,0.00016981,2]
[374695373,1753417833513,-460.0,0.00016981,2]
[374695374,1753417833525,-460.0,0.00016981,2]
[374695376,1753417833535,-460.0,0.00016981,2]
[374695377,1753417833545,-460.0,0.00016981,2]
[374695378,1753417833555,-460.0,0.00016981,2]
[374695379,1753417833565,-1518.26,0.00016981,2]
[374695381,1753417833574,-460.0,0.00016981,2]
[374695383,1753417833585,-460.0,0.00016981,2]
[374695385,1753417833595,-460.0,0.00016981,2]
[374695387,1753417833604,-474.30754521,0.00016981,2]
[374695389,1753417833614,-461.00911763,0.00016982,2]
[374695390,1753417833624,-460.0,0.00016982,2]
[374695392,1753417833634,-368.44174212,0.00016982,2]
[374695394,1753417833644,-460.0,0.00016982,2]
[374695396,1753417833654,-460.0,0.00016982,2]
[374695397,1753417833663,-460.0,0.00016982,2]
[374695398,1753417833673,-463.84916918,0.00016982,2]
[374695400,1753417833683,-460.70705094,0.00016982,2]
[374695402,1753417833693,-460.0,0.00016982,2]
[374695403,1753417833703,-460.0,0.00016982,2]
[374695405,1753417833712,-460.0,0.00016982,2]
[374695407,1753417833722,-460.0,0.00016982,2]
[374695408,1753417833732,-460.0,0.00016982,2]
[374695410,1753417833741,-2865.13,0.00016982,2]
[374695413,1753417833751,-460.0,0.00016982,2]
[374695414,1753417833761,-460.0,0.00016982,2]
[374695416,1753417833772,-460.0,0.00016982,2]
[374695418,1753417833783,-1473.68,0.00016982,2]
[374695420,1753417833793,-460.0,0.00016982,2]
[374695422,1753417833803,-460.0,0.00016982,2]
[374695424,1753417833812,-460.0,0.00016982,2]
[374695426,1753417833820,-460.0,0.00016982,2]
[374695428,1753417833830,-460.0,0.00016982,2]
[374695430,1753417833840,-460.0,0.00016982,2]
[374695433,1753417833850,-461.03207951,0.00016982,2]
[374695434,1753417833860,-460.0,0.00016982,2]
[374695436,1753417833870,-460.0,0.00016982,2]
[374695438,1753417833879,-460.0,0.00016982,2]
[374695440,1753417833889,-460.0,0.00016982,2]
[374695442,1753417833899,-460.0,0.00016982,2]
[374695444,1753417833909,-1303.91,0.00016982,2]
[374695446,1753417833919,-1396.28,0.00016982,2]
[374695448,1753417833929,-460.0,0.00016982,2]
[374695450,1753417833939,-460.0,0.00016982,2]
[374695452,1753417833949,-460.0,0.00016982,2]
[374695454,1753417833959,-1165.0,0.00016982,2]
[374695456,1753417833969,-460.0,0.00016982,2]
[374695458,1753417833979,-465.64436908,0.00016982,2]
[374695461,1753417833990,-460.0,0.00016982,2]
[374695464,1753417834011,-460.0,0.00016982,2]
[374695466,1753417834027,-548.61,0.00016982,2]
[374695468,1753417834038,-460.0,0.00016982,2]
[374695470,1753417834048,-151.0,0.00016983,2]
[374695472,1753417834059,-821.0,0.00016983,2]
[374695474,1753417834069,-151.0,0.00016983,2]
[374695476,1753417834079,-151.0,0.00016983,2]
[374695478,1753417834091,-151.0,0.00016983,2]
[374695480,1753417834101,-500.0,0.00016983,2]
[374695482,1753417834111,-151.0,0.00016983,2]
[374695484,1753417834122,-151.0,0.00016983,2]
[374695486,1753417834132,-151.0,0.00016983,2]
[374695487,1753417834141,-151.0,0.00016983,2]
[374695488,1753417834152,-151.0,0.00016983,2]
[374695490,1753417834162,-151.0,0.00016983,2]
[374695492,1753417834172,-151.0,0.00016983,2]
[374695494,1753417834182,-151.0,0.00016983,2]
[374695496,1753417834192,-154.22183122,0.00016983,2]
[374695498,1753417834201,-500.0,0.00016983,2]
[374695500,1753417834212,-718.0,0.00016983,2]
[374695502,1753417834221,-151.18783443,0.00016983,2]
[374695504,1753417834230,-151.48953185,0.00016983,2]
[374695505,1753417834240,-500.0,0.00016983,2]
[374695507,1753417834250,-500.0,0.00016983,2]
[374695509,1753417834260,-152.27832512,0.00016983,2]
[374695511,1753417834271,-500.0,0.00016983,2]
[374695513,1753417834282,-151.28821956,0.00016983,2]
[374695515,1753417834291,-151.0,0.00016983,2]
[374695517,1753417834301,-151.2809574,0.00016983,2]
[374695519,1753417834311,-151.65076989,0.00016983,2]
[374695521,1753417834321,-154.78410383,0.00016983,2]
[374695523,1753417834331,-460.0,0.00016985,2]
[374695525,1753417834341,-460.0,0.00016985,2]
[374695527,1753417834351,-460.0,0.00016985,2]
[374695529,1753417834361,-460.0,0.00016985,2]
[374695531,1753417834371,-460.0,0.00016985,2]
[374695533,1753417834380,-460.0,0.00016985,2]
[374695535,1753417834390,-460.0,0.00016985,2]
[374695537,1753417834399,-460.0,0.00016985,2]
[374695539,1753417834410,-460.0,0.00016985,2]
[374695541,1753417834423,-462.28802853,0.00016985,2]
[374695543,1753417834432,-460.0,0.00016985,2]
[374695545,1753417834442,-460.0,0.00016985,2]
[374695548,1753417834454,-460.0,0.00016985,2]
[374695550,1753417834464,-462.22823833,0.00016985,2]
[374695552,1753417834474,-475.9132921,0.00016985,2]
[374695554,1753417834484,-460.0,0.00016985,2]
[374695556,1753417834495,-460.0,0.00016985,2]
[374695558,1753417834505,-461.20924833,0.00016985,2]
[374695560,1753417834514,-460.0,0.00016985,2]
[374695562,1753417834525,-500.0,0.00016985,2]
[374695564,1753417834534,-500.0,0.00016985,2]
[374695566,1753417834543,-500.0,0.00016985,2]
[374695568,1753417834553,-460.0,0.00016985,2]
[374695570,1753417834562,-460.0,0.00016985,2]
[374695572,1753417834572,-460.0,0.00016985,2]
[374695574,1753417834581,-460.0,0.00016985,2]
[374695576,1753417834591,-460.0,0.00016985,2]
[374695578,1753417834600,-460.0,0.00016985,2]
[374695580,1753417834610,-460.0,0.00016985,2]
[374695582,1753417834619,-460.0,0.00016985,2]
[374695584,1753417834628,-460.0,0.00016985,2]
[374695586,1753417834638,-623.06,0.00016985,2]
[374695588,1753417834647,-460.0,0.00016985,2]
[374695590,1753417834657,-460.0,0.00016985,2]
[374695592,1753417834666,-460.0,0.00016985,2]
[374695594,1753417834676,-460.0,0.00016985,2]
[374695596,1753417834686,-460.0,0.00016985,2]
[374695598,1753417834695,-460.0,0.00016985,2]
[374695600,1753417834705,-456.39160033,0.00016985,2]
[374695602,1753417834714,-460.0,0.00016985,2]
[374695604,1753417834724,-460.0,0.00016985,2]
[374695607,1753417834734,-460.0,0.00016985,2]
[374695609,1753417834748,-460.0,0.00016985,2]
[374695611,1753417834757,-460.0,0.00016985,2]
[374695613,1753417834769,-555.6,0.00016985,2]
[374695615,1753417834779,-460.0,0.00016985,2]
[374695617,1753417834789,-570.11655294,0.00016985,2]
[374695619,1753417834806,-460.0,0.00016985,2]
[374695621,1753417834816,-460.0,0.00016985,2]
[374695623,1753417834826,-460.0,0.00016985,2]
[374695625,1753417834836,-561.1,0.00016985,2]
[374695627,1753417834846,-460.0,0.00016985,2]
[374695629,1753417834855,-460.0,0.00016985,2]
[374695631,1753417834865,-506.34627221,0.00016985,2]
[374695633,1753417834875,-460.0,0.00016985,2]
[374695635,1753417834885,-460.0,0.00016985,2]
[374695637,1753417834894,-460.0,0.00016985,2]
[374695639,1753417834904,-160.0,0.00016985,2]
[374695641,1753417834914,-326.95612181,0.00016986,2]
[374695643,1753417834924,-460.0,0.00016986,2]
[374695645,1753417834933,-460.0,0.00016986,2]
[374695647,1753417834943,-460.0,0.00016986,2]
[374695649,1753417834952,-460.0,0.00016986,2]
[374695651,1753417834962,-460.0,0.00016986,2]
[374695653,1753417834972,-460.0,0.00016986,2]
[374695655,1753417834981,-460.0,0.00016986,2]
[374695657,1753417834990,-500.0,0.00016986,2]
[374695659,1753417835000,-500.0,0.00016986,2]
[374695661,1753417835010,-460.0,0.00016986,2]
[374695663,1753417835022,-893.71,0.00016986,2]
[374695665,1753417835032,-460.0,0.00016986,2]
[374695667,1753417835042,-460.0,0.00016986,2]
[374695669,1753417835051,-500.0,0.00016986,2]
[374695671,1753417835061,-500.0,0.00016986,2]
[374695673,1753417835072,-500.0,0.00016986,2]
[374695674,1753417835083,-500.0,0.00016986,2]
[374695676,1753417835093,-460.0,0.00016986,2]
[374695678,1753417835103,-460.0,0.00016986,2]
[374695680,1753417835113,-460.0,0.00016986,2]
[374695682,1753417835123,-460.0,0.00016986,2]
[374695684,1753417835133,-460.0,0.00016986,2]
[374695686,1753417835142,-460.0,0.00016986,2]
[374695688,1753417835152,-460.0,0.00016986,2]
[374695690,1753417835162,-460.0,0.00016986,2]
[374695692,1753417835171,-460.0,0.00016986,2]
[374695694,1753417835180,-460.0,0.00016986,2]
[374695696,1753417835190,-460.0,0.00016986,2]
[374695698,1753417835200,-460.0,0.00016986,2]
[374695700,1753417835210,-460.0,0.00016986,2]
[374695702,1753417835219,-460.0,0.00016986,2]
[374695704,1753417835229,-460.0,0.00016986,2]
[374695706,1753417835239,-65574.96526267,0.00016987,2]
[374695712,1753417835289,-2165.55881154,0.00016987,2]
[374695714,1753417835300,-2576.07709876,0.00016987,2]
[374695717,1753417835312,-20500.99675461,0.00016987,2]
[374695719,1753417835323,-2675.19788194,0.00016987,2]
[374695721,1753417835334,-1929.84333827,0.00016987,2]
[374695723,1753417835346,-3490.2,0.00016987,2]
[374695778,1753417838530,-299.49788009,0.00016898,2]
[374695779,1753417838540,-500.0,0.00016898,2]
[374695780,1753417838550,-500.0,0.00016898,2]
[374695781,1753417838561,-500.0,0.00016898,2]
[374695782,1753417838571,-500.0,0.00016898,2]
[374695783,1753417838581,-397.93405856,0.00016898,2]
[374695784,1753417838590,-500.0,0.00016898,2]
[374695785,1753417838600,-424.64451493,0.00016898,2]
[374695786,1753417838610,-500.0,0.00016898,2]
[374695787,1753417838620,-267.09608327,0.00016898,2]
[374695788,1753417838630,-500.0,0.00016898,2]
[374695789,1753417838640,-500.0,0.00016898,2]
[374695790,1753417838650,-500.0,0.00016898,2]
[374695791,1753417838660,-500.0,0.00016898,2]
[374695792,1753417838669,-500.0,0.00016898,2]
[374695793,1753417838679,-643.79659588,0.00016898,2]
[374695794,1753417838689,-500.0,0.00016898,2]
[374695795,1753417838699,-500.0,0.00016898,2]
[374695798,1753417838709,-500.0,0.00016898,2]
[374695799,1753417838718,-500.0,0.00016898,2]
[374695800,1753417838728,-500.0,0.00016898,2]
[374695801,1753417838737,-500.0,0.00016898,2]
[374695802,1753417838747,-458.18511442,0.00016898,2]
[374695803,1753417838757,-500.0,0.00016898,2]
[374695804,1753417838766,-500.0,0.00016898,2]
[374695805,1753417838776,-598.35796725,0.00016898,2]
[374695806,1753417838786,-500.0,0.00016898,2]
[374695807,1753417838795,-500.0,0.00016898,2]
[374695808,1753417838806,-500.0,0.00016898,2]
[374695809,1753417838816,-500.0,0.00016898,2]
[374695810,1753417838826,-500.0,0.00016898,2]
[374695811,1753417838836,-500.0,0.00016898,2]
[374695812,1753417838846,-500.0,0.00016898,2]
[374695813,1753417838855,-500.0,0.00016898,2]
[374695814,1753417838866,-500.0,0.00016898,2]
[374695815,1753417838875,-500.0,0.00016898,2]
[374695816,1753417838885,-500.0,0.00016898,2]
[374695818,1753417838895,-500.0,0.00016898,2]
[374695819,1753417838905,-500.0,0.00016898,2]
[374695820,1753417838915,-500.0,0.00016898,2]
[374695821,1753417838925,-500.0,0.00016898,2]
[374695822,1753417838935,-500.0,0.00016898,2]
[374695823,1753417838945,-500.0,0.00016898,2]
[374695824,1753417838958,-500.0,0.00016898,2]
[374695825,1753417838969,-500.0,0.00016898,2]
[374695826,1753417838979,-500.0,0.00016898,2]
[374695827,1753417838989,-500.0,0.00016898,2]
[374695828,1753417838999,-500.0,0.00016898,2]
[374695829,1753417839009,-500.0,0.00016898,2]
[374695830,1753417839018,-500.0,0.00016898,2]
[374695831,1753417839030,-500.0,0.00016898,2]
[374695832,1753417839041,-500.0,0.00016898,2]
[374695833,1753417839051,-500.0,0.00016898,2]
[374695834,1753417839060,-500.0,0.00016898,2]
[374695835,1753417839070,-500.0,0.00016898,2]
[374695836,1753417839080,-500.0,0.00016898,2]
[374695837,1753417839090,-466.73860426,0.00016898,2]
[374695838,1753417839099,-500.0,0.00016898,2]
[374695839,1753417839109,-500.0,0.00016898,2]
[374695840,1753417839119,-500.0,0.00016898,2]
[374695841,1753417839129,-500.0,0.00016898,2]
[374695842,1753417839139,-500.0,0.00016898,2]
[374695843,1753417839149,-500.0,0.00016898,2]
[374695844,1753417839158,-500.0,0.00016898,2]
[374695845,1753417839168,-500.0,0.00016898,2]
[374695846,1753417839178,-485.4671574,0.00016898,2]
[374695847,1753417839188,-500.0,0.00016898,2]
[374695848,1753417839198,-500.0,0.00016898,2]
[374695849,1753417839207,-500.0,0.00016898,2]
[374695850,1753417839217,-500.0,0.00016898,2]
[374695851,1753417839226,-500.0,0.00016898,2]
[374695852,1753417839235,-500.0,0.00016898,2]
[374695853,1753417839245,-500.0,0.00016898,2]
[374695854,1753417839255,-500.0,0.00016898,2]
[374695855,1753417839265,-500.0,0.00016898,2]
[374695856,1753417839276,-500.0,0.00016898,2]
[374695857,1753417839286,-500.0,0.00016898,2]
[374695858,1753417839296,-500.0,0.00016898,2]
[374695859,1753417839305,-500.0,0.00016898,2]
[374695860,1753417839315,-500.0,0.00016898,2]
[374695861,1753417839325,-500.0,0.00016898,2]
[374695862,1753417839335,-500.0,0.00016898,2]
[374695863,1753417839345,-500.0,0.00016898,2]
[374695864,1753417839355,-500.0,0.00016898,2]
[374695865,1753417839364,-500.0,0.00016898,2]
[374695866,1753417839373,-500.0,0.00016898,2]
[374695867,1753417839383,-500.0,0.00016898,2]
[374695868,1753417839392,-500.0,0.00016898,2]
[374695869,1753417839404,-500.0,0.00016898,2]
[374695870,1753417839415,-500.0,0.00016898,2]
[374695871,1753417839426,-460.0,0.00016978,2]
[374695872,1753417839435,-460.0,0.00016985,2]
[374695873,1753417839447,-269089.57235697,0.00016987,2]
[374695874,1753417839457,-2872.3541816,0.00017023,2]
[374695875,1753417839467,-500.0,0.00017058,2]
[374695876,1753417839476,-460.0,0.00017082,2]
[374695877,1753417839486,-460.0,0.00017082,2]
[374695878,1753417839496,-460.0,0.00017082,2]
[374695879,1753417839506,-460.0,0.00017082,2]
[374695880,1753417839515,-460.0,0.00017082,2]
[374695881,1753417839527,-460.0,0.00017082,2]
[374695882,1753417839537,-460.0,0.00017082,2]
[374695883,1753417839547,-466.754891,0.00017082,2]
[374695884,1753417839556,-460.0,0.00017082,2]
[374695885,1753417839566,-460.0,0.00017082,2]
[374695886,1753417839575,-460.0,0.00017082,2]
[374695887,1753417839585,-495.28,0.00017082,2]
[374695888,1753417839594,-460.0,0.00017082,2]
[374695889,1753417839604,-460.0,0.00017082,2]
[374695890,1753417839614,-460.0,0.00017082,2]
[374695891,1753417839624,-460.0,0.00017082,2]
[374695892,1753417839633,-460.0,0.00017082,2]
[374695893,1753417839643,-460.0,0.00017082,2]
[374695894,1753417839652,-460.0,0.00017082,2]
[374695895,1753417839662,-460.0,0.00017082,2]
[374695896,1753417839671,-525.43,0.00017082,2]
[374695897,1753417839682,-460.0,0.00017082,2]
[374695898,1753417839691,-460.2633411,0.00017082,2]
[374695899,1753417839701,-580.52968679,0.00017082,2]
[374695900,1753417839711,-567.68052798,0.00017082,2]
[374695901,1753417839720,-460.0,0.00017082,2]
[374695902,1753417839730,-460.0,0.00017082,2]
[374695903,1753417839740,-460.0,0.00017082,2]
[374695904,1753417839751,-460.0,0.00017082,2]
[374695905,1753417839760,-256.64114248,0.00017082,2]
[374695906,1753417839770,-460.0,0.00017082,2]
[374695907,1753417839784,-460.0,0.00017082,2]
[374695908,1753417839794,-460.0,0.00017082,2]
[374695909,1753417839805,-460.0,0.00017082,2]
[374695910,1753417839815,-460.0,0.00017082,2]
[374695911,1753417839825,-460.0,0.00017082,2]
[374695912,1753417839836,-460.0,0.00017082,2]
[374695913,1753417839847,-460.0,0.00017082,2]
[374695914,1753417839858,-460.0,0.00017082,2]